Cogmind - Beta 13 @@@ ROGUE MODE // 2024.05.04 @ 17:04:01 Player: Compound1080 Result: Destroyed by Y-45 Defender with Heavy Assault Rifle Performance ------------- Evolutions (1) 500 Regions Visited (4) 800 Robots Destroyed (13) 65 Value Destroyed (247) 247 Prototype IDs (1) 20 Alien Tech Used (0) 0 Bonus (0) 0 TOTAL SCORE: 1632 Bonus ------- None Cogmind --------- Core Integrity 0/400 Matter 228/300 Energy 85/100 System Corruption 0% Temperature Cool (15) Movement Core (250) Ox4 Location -9/Storage Parts ------- > --- POWER (1) -------- (None) > --- PROPULSION (2) --- (None) > --- UTILITY (4) ------ Medium Storage Unit > --- WEAPON (2) ------- Grenade Launcher > --- INVENTORY (10) --- Aluminum Leg Aluminum Leg Compact Wheel Small Storage Unit Light Armor Plating Peak State ------------ > --- POWER ------------ Light Ion Engine > --- PROPULSION ------- Wheel Compact Wheel > --- UTILITY ---------- Small Storage Unit Medium Storage Unit Experimental Sensor Array > --- WEAPON ----------- Assault Rifle Welding Torch > --- INVENTORY -------- Ion Engine Aluminum Leg Aluminum Leg Compact Wheel Compact Wheel Light Armor Plating Assault Rifle Grenade Launcher Mini Grenade Launcher [Rating: 17] Favorites ----------- Power Light Ion Engine Engine Light Ion Engine Propulsion Compact Wheel Wheel Compact Wheel Utility Medium Storage Unit Device Experimental Sensor Array Storage Medium Storage Unit Weapon Assault Rifle Ballistic Gun Assault Rifle Launcher Mini Grenade Launcher Special Weapon Welding Torch Build | -11 -10 -10 -9 -9 ------- Run | Yrd Mat Min Mat Sto Slots Evolved 2 | . . . 2 . Power . | . . . . . Propulsion . | . . . . . Utility 2 | . . . 2 . Weapon . | . . . . . Parts Attached 14 | 4 1 2 1 6 Power 2 | 1 . . . 1 Engine 2 | 1 . . . 1 Core . | . . . . . Reactor . | . . . . . Propulsion 3 | 2 . . . 1 Treads . | . . . . . Leg . | . . . . . Wheel 3 | 2 . . . 1 Hover . | . . . . . Flight . | . . . . . Utility 4 | 1 1 1 . 1 Device 1 | . . 1 . . Storage 3 | 1 1 . . 1 Processor . | . . . . . Hackware . | . . . . . Protection . | . . . . . Artifact . | . . . . . Weapon 5 | . . 1 1 3 Energy Gun . | . . . . . Energy Cannon . | . . . . . Ballistic Gun 2 | . . 1 . 1 Ballistic Cannon . | . . . . . Launcher 2 | . . . . 2 Special Weapon 1 | . . . 1 . Impact Weapon . | . . . . . Slashing Weapon . | . . . . . Piercing Weapon . | . . . . . Special Melee Weapon . | . . . . . Unidentified Prototypes 1 | . . 1 . . Parts Lost 10 | . . . . 10 Power 2 | . . . . 2 Propulsion 3 | . . . . 3 Utility 1 | . . . . 1 Weapon 4 | . . . . 4 Highest Loss Streak 7 | . . . . 7 To Critical Strikes . | . . . . . Average Slot Usage (%) 72 | . 57 77 76 64 Engine 11 | . 14 14 11 8 Wheel 23 | . 28 28 22 16 Device 9 | . . 9 11 11 Storage 12 | . 14 14 11 11 Ballistic Gun 10 | . . 11 11 11 Special Weapon 5 | . . . 10 6 Naked Turns . | . . . . . Heaviest Build 18 | 8 13 16 17 18 Greatest Support 32 | 26 26 26 26 32 Greatest Overweight (x) 1 | . . . . 1 Average Overweight (x) . | . . . . . Largest Inventory Capacity 10 | 8 10 10 10 10 Average Capacity 9 | 7 9 10 10 10 Most Carried 10 | 5 10 10 10 10 Average Carried 8 | 2 8 9 9 9 Final Capacity 10 | 8 10 10 10 10 Final Carried 10 | 5 10 9 9 5 Class Distribution -------------------- 100% | Mutant Dominant Class ---------------- Mutant | -10/Materials Mutant | -10/Mines Mutant | -9/Materials Mutant | -9/Storage Resources | -11 -10 -10 -9 -9 ----------- Run | Yrd Mat Min Mat Sto Matter Collected 359 | 207 . 26 101 25 Remotely . | . . . . . Salvage Created 437 | . . 26 209 202 Parts 27 | . . 2 13 12 Haulers Intercepted . | . . . . . Recyclers Shooed . | . . . . . Parts Field Recycled . | . . . . . Retrieved Matter . | . . . . . Parts Self-Destructed . | . . . . . Prevented . | . . . . . Kills | -11 -10 -10 -9 -9 ------- Run | Yrd Mat Min Mat Sto Combat Hostiles Destroyed 8 | . . . 4 4 Guns 8 | . . . 4 4 Classes Destroyed 6 | . . 1 3 2 Worker 3 | . . 1 . 2 Recycler 1 | . . . . 1 Watcher 1 | . . . 1 . Swarmer 3 | . . . . 3 Grunt 3 | . . . 3 . Sentry 2 | . . . 1 1 Best Kill Streak 5 | . . 1 4 5 Combat Bots Only 4 | . . . 3 4 Max Kills in Single Turn 1 | . . 1 1 1 Gunslinging . | . . . . . Exploded . | . . . . . Melee . | . . . . . Uniques/NPCs Destroyed . | . . . . . Combat | -11 -10 -10 -9 -9 -------- Run | Yrd Mat Min Mat Sto Hostile Shots Fired 95 | . 2 . 22 71 Missed 25 | . 1 . 9 15 Damage Taken 1000 | . 11 . 183 806 Core 400 | . . . 95 305 Absorbed by Shields . | . . . . . Core Remaining (%) 100 | 100 . 100 . . Volleys Fired 36 | . . 2 18 16 Largest 2 | . . 1 2 2 Hottest 50 | . . 20 40 50 Shots Fired 50 | . . 2 29 19 Gun 32 | . . 2 16 14 Cannon . | . . . . . Launcher 3 | . . . . 3 Special 15 | . . . 13 2 Kinetic 32 | . . 2 16 14 Thermal 15 | . . . 13 2 Explosive 3 | . . . . 3 Electromagnetic . | . . . . . Robot Hit Streak 6 | . . 2 6 5 Robot Miss Streak 4 | . . . 4 3 Penetration Max . | . . . . . Secondary Targets . | . . . . . Shots Hit Robots 28 | . . 2 15 11 Core Hits 24 | . . 1 8 15 Critical Kills 1 | . . . . 1 Critical Parts Destroyed . | . . . . . Critical Strikes 1 | . . . . 1 Destroy 1 | . . . . 1 Melee Attacks . | . . . . . Impact . | . . . . . Slashing . | . . . . . Piercing . | . . . . . Sneak Attacks . | . . . . . Combat Hostiles . | . . . . . Follow-up Attacks . | . . . . . Damage Inflicted 513 | . . 23 156 334 Guns 293 | . . 23 141 129 Cannons . | . . . . . Explosions 205 | . . . . 205 Melee . | . . . . . Ramming 2 | . . . 2 . Kinetic 293 | . . 23 141 129 Thermal 13 | . . . 13 . Explosive 205 | . . . . 205 Electromagnetic . | . . . . . Impact . | . . . . . Slashing . | . . . . . Piercing . | . . . . . Highest Corruption . | . . . . . Average Corruption . | . . . . . Corruption Purged . | . . . . . Corruption Blocked . | . . . . . Overload Shots . | . . . . . Overflow Damage . | . . . . . Projectiles . | . . . . . Explosions . | . . . . . Melee . | . . . . . Knockbacks . | . . . . . Impact . | . . . . . Kinetic . | . . . . . Secondary . | . . . . . Self-Inflicted Damage 110 | . . . 1 109 Shots 3 | . . . . 3 Rammed 1 | . . . 1 . Targets Rammed 1 | . . . 1 . Kicked . | . . . . . Crushed . | . . . . . Highest Temperature 6 | . . . . 6 Average Temperature 4 | . . . . 4 Received Heat Transfer 231 | . 6 . 66 159 Siege Activations . | . . . . . Robots Corrupted . | . . . . . Combat Hostiles . | . . . . . Parts Fried . | . . . . . Impact Corruptions . | . . . . . Robots Melted . | . . . . . Combat Hostiles . | . . . . . Parts Melted . | . . . . . Heat Transferred 100 | . . . 100 . Parts Sabotaged . | . . . . . Parts Stolen . | . . . . . Parts Stripped . | . . . . . Power Chain Reactions . | . . . . . Alert | -11 -10 -10 -9 -9 ------- Run | Yrd Mat Min Mat Sto Peak Influence 127 | . 15 10 127 121 Initial 5 | . . 5 3 5 Average 26 | . 1 9 51 25 Maximum Alert Level . | . . . . . Low Security (%) 100 | 100 100 100 100 100 Level 1 . | . . . . . Level 2 . | . . . . . Level 3 . | . . . . . Level 4 . | . . . . . Level 5 . | . . . . . High Security . | . . . . . Max Security . | . . . . . Squads Dispatched 2 | . . . 1 1 Investigation 2 | . . . 1 1 Extermination . | . . . . . Reinforcement . | . . . . . Assault . | . . . . . Garrison . | . . . . . Intercept . | . . . . . Searches Triggered . | . . . . . Construction Impeded . | . . . . . Haulers Reinforced . | . . . . . Active Scanning Responses . | . . . . . Cargo Convoy Interrupts . | . . . . . Stealth | -11 -10 -10 -9 -9 --------- Run | Yrd Mat Min Mat Sto Distress Signals 3 | . . . 3 . Communications Jammed . | . . . . . Distress Signals . | . . . . . Times Spotted 25 | . 3 . 11 11 Peak Tracking Total 9 | . 3 . 4 9 Tactical Retreats 1 | . . . 1 . Traps | -11 -10 -10 -9 -9 ------- Run | Yrd Mat Min Mat Sto Traps Triggered . | . . . . . Indirectly . | . . . . . Trap Hack Attempts . | . . . . . Triggered . | . . . . . Disarmed . | . . . . . Reprogrammed . | . . . . . Reused . | . . . . . Traps Extracted . | . . . . . Installed . | . . . . . Triggered . | . . . . . Machines | -11 -10 -10 -9 -9 ---------- Run | Yrd Mat Min Mat Sto Machines Disabled . | . . . . . Max in Single Turn . | . . . . . Garrison Access 1 | . . . . 1 Machines Repaired . | . . . . . Machines Dismantled . | . . . . . Machines Sabotaged . | . . . . . Overloaded Fab Kills . | . . . . . Hacking | -11 -10 -10 -9 -9 --------- Run | Yrd Mat Min Mat Sto Machines Accessed 6 | . . . 2 4 Terminals 5 | . . . 2 3 Fabricators . | . . . . . Repair Stations . | . . . . . Recycling Units . | . . . . . Scanalyzers . | . . . . . Garrison Access 1 | . . . . 1 Total Hacks 18 | . . . 6 12 Successful 12 | . . . 4 8 Failed 6 | . . . 2 4 Catastrophic . | . . . . . Database Lockouts . | . . . . . Manual . | . . . . . Terminals 17 | . . . 6 11 Fabricators . | . . . . . Repair Stations . | . . . . . Recycling Units . | . . . . . Scanalyzers . | . . . . . Garrison Access 1 | . . . . 1 Terminal Hacks 11 | . . . 4 7 Record 8 | . . . 4 4 Dispatch Records 1 | . . . . 1 Maintenance Status 1 | . . . . 1 Zone Layout 1 | . . . . 1 Fabricator Hacks . | . . . . . Repair Station Hacks . | . . . . . Recycling Unit Hacks . | . . . . . Scanalyzer . | . . . . . Garrison Access Hacks 1 | . . . . 1 Seal Access 1 | . . . . 1 Unauthorized Hacks . | . . . . . Terminals . | . . . . . Fabricators . | . . . . . Repair Stations . | . . . . . Recycling Units . | . . . . . Scanalyzers . | . . . . . Garrison Access . | . . . . . Data Cores Recovered . | . . . . . Used . | . . . . . Hacking Detections 5 | . . . 2 3 Full Trace Events 3 | . . . 1 2 Feedback Events . | . . . . . Feedback Blocked . | . . . . . Robot Schematics Acquired . | . . . . . Robots Built . | . . . . . Authchips . | . . . . . Time . | . . . . . Total Robot Build Rating . | . . . . . Part Schematics Acquired . | . . . . . Parts Built . | . . . . . Authchips . | . . . . . Time . | . . . . . Total Part Build Rating . | . . . . . Parts Repaired . | . . . . . Time . | . . . . . Parts Recycled . | . . . . . Recycled Matter . | . . . . . Retrieved Matter . | . . . . . Retrieved Components . | . . . . . Parts Scanalyzed . | . . . . . Part Schematics Acquired . | . . . . . Parts Damaged . | . . . . . Bothacking | -11 -10 -10 -9 -9 ------------ Run | Yrd Mat Min Mat Sto Used RIF Installer . | . . . . . Robots Hacked . | . . . . . Non-combat . | . . . . . Combat . | . . . . . Robot Hacks Applied . | . . . . . Relay Couplers Released . | . . . . . Fabnet Peak Effective % . | . . . . . Robots Rewired . | . . . . . Allies Hacked . | . . . . . Hacks Repelled . | . . . . . Allies | -11 -10 -10 -9 -9 -------- Run | Yrd Mat Min Mat Sto Total Allies . | . . . . . Largest Group . | . . . . . Highest-Rated Group . | . . . . . Highest-Rated Ally . | . . . . . Total Orders . | . . . . . Ally Attacks . | . . . . . Total Damage . | . . . . . Kills . | . . . . . Allies Corrupted . | . . . . . Allies Melted . | . . . . . Intel | -11 -10 -10 -9 -9 ------- Run | Yrd Mat Min Mat Sto Robot Analysis Total . | . . . . . Derelict Logs Recovered 1 | . . 1 . . Drone Launches . | . . . . . Drone Recoveries . | . . . . . Exploration | -11 -10 -10 -9 -9 ------------- Run | Yrd Mat Min Mat Sto Turns Passed 1178 | 49 111 378 439 201 Spaces Moved 968 | 43 117 413 230 165 Core 5 | 5 . . . . Treads . | . . . . . Legs . | . . . . . Wheels 963 | 38 117 413 230 165 Hover . | . . . . . Flight . | . . . . . Fastest Speed 50 | 50 90 90 90 90 Average Speed 90 | 85 90 90 90 96 Slowest Speed 115 | 90 90 90 90 115 Overloaded Moves . | . . . . . Propulsion Burnouts . | . . . . . Robots Hopped . | . . . . . Cave-ins Triggered . | . . . . . Exploration Rate (%) 36 | 4 24 78 23 51 Regions Visited 4 Branch Regions 2 Pre-discovered Areas 1 | . . 1 . . Known Exits Taken . | . . . . . Unknown Exits Taken 4 | 1 1 1 1 . Scrap Searched . | . . . . . Spaces Dug . | . . . . . Terrain Destroyed 22 | . . . . 22 Melee . | . . . . . Projectile . | . . . . . AOE 22 | . . . . 22 Terrain Rammed . | . . . . . Walls Destroyed . | . . . . . Machines Disabled . | . . . . . Actions | -11 -10 -10 -9 -9 --------- Run | Yrd Mat Min Mat Sto Total 1213 | 55 122 417 430 189 Wait 180 | . . . 180 . Move 964 | 42 116 412 229 165 Hop . | . . . . . Pick Up 17 | 9 5 1 1 1 Fast Attach . | . . . . . Attach 13 | 4 . 2 1 6 Detach 1 | . . . . 1 Swap 1 | . 1 . . . Drop . | . . . . . Fire 36 | . . 2 18 16 Melee . | . . . . . Ram 1 | . . . 1 . Kick . | . . . . . Crush . | . . . . . Escape Stasis . | . . . . . Rewire . | . . . . . Trap . | . . . . . Miscellaneous . | . . . . . Route ------- -11/Scrapyard -10/Materials -10/Mines -9/Materials (discovered 2 exits: [*Mat] / *Sto) -9/Storage History --------- Turn | Location | Event 5 | -11/Scrapyard | Discovered new exit (range 15) 50 | -11/Scrapyard | Entered Materials 148 | -10/Materials | Discovered new exit (range 16) 161 | -10/Materials | Entered Mines 162 | -10/Mines | Learned location of Storage (-9) 171 | -10/Mines | Met a Derelict bent on vengeance 249 | -10/Mines | Learned Materials terminal intel 287 | -10/Mines | Found a damaged Exp. Sensor Array with a note attached 289 | -10/Mines | Found Prototype Device 290 | -10/Mines | Identified Exp. Sensor Array 311 | -10/Mines | Build established: Mutant 384 | -10/Mines | Assembled infested the area 389 | -10/Mines | Assisted by a Guerilla fighting off Assembled 427 | -10/Mines | Discovered new exit (range 11) 539 | -10/Mines | Entered Materials 539 | -9/Materials | Evolved 2 slots: Utility x2 540 | -9/Materials | Loaded intel: 12 terminal locations 891 | -9/Materials | Discovered new exit (range 15) 976 | -9/Materials | Discovered new exit (range 9) 978 | -9/Materials | Entered Storage 1122 | -9/Storage | Lost 3 parts (1p1n1w) 1167 | -9/Storage | Core integrity fell below 50% 1177 | -9/Storage | Core integrity fell below 20% 1179 | -9/Storage | Destroyed by Y-45 Defender with Heavy Assault Rifle Last Messages --------------- components delivered by Recycler class robots. Condensed matter is contained within the unit until it reaches a certain quota, at which point it is transferred to the nearest [DSF]. 01125_ ALERT: Suspicious activity at Terminal S011. Dispatching Investigation squad. 01127_ Com. Wheel destroyed. 01139_ C-30 ARC bursts open, deploying its payload. 01139_ S-10 Pest unfolds itself. 01152_ Assault Rifle destroyed. 01158_ S-10 Pest destroyed. 01172_ Broken Exp. Sensor Array destroyed. [Achievement: Let's See Who's Tougher] 01173_ Y-45 Defender destroyed. 01173_ Ion Engine destroyed. 01174_ Assault Rifle destroyed. 01175_ Com. Wheel destroyed. 01176_ R-06 Scavenger destroyed. 01178_ Mni. Grenade Launcher destroyed. Map ----- +----------------------------------------------------+ | ???????????? #?###########??????# | | ???????????? #?# #??????# "" | | ???????????? #?# #??????# "" | | ???????????? #?# #??????# "" | | ???????????? #?# #??????# | | ???????????? #?##+##+#######????# | | ?????????????###??# ###"T"######### | | ???????????# #????# | | ???????????#%#????# | | ??????????##/####?# "" | | ??????????? #?# T" | | ????????????" ### "" | | ????????????"" # | | ????????????""" + """ """ | | ???????????? " # """ """ | | ???????????? " # u """ """ | | ????????????""" # | | ???????????? # | | ????????????##### """ """ """ | | ??????????####### """ """ """ | | ????????### g """ """ """ | | ?######## # m | | ?# =Y% | | ?# Y ###+#####+###### ####+ | | ?# Y% T #??????????# #???? | | ?????"""" [@ #??????????????# #???? | | ?????"""" = #??????????????# #???? | | ?????"""" Y ##??????????????# #???? | | ???? + ##???????#########+#???? | | ??? # #????????# #???? | | ??########## #????????# #+### | | ???????????# T????????#[ ]] # # | | ???????????# #????????# ]] + # | | ???????????""""????????# "" # # | | ???????????????????????# G" # # | | ???????????????????????# "" # # | | ???????????????????????# # # | | ???????????????????????####" "#### + | | ??????????????????????????#"R"#??# # | | ??????????????????????????#"""#??# # | | ??????????????????????????#####??# # | | ?????????????????????????????????# | | ?????????????????????????????????# | | ?????????????????????????????????# | | ?????????????????????????????????##### | | ?????????????????????????????????????? | | ?????????????????????????????????????? | | ?????????????????????????????????????? | | ?????????????????????????????????????? | | ?????????????????????????????????????? | +----------------------------------------------------+ Best States ------------- Heat Dissipation 28 Energy Generation 10 Energy Capacity 250 Matter Stores 300 Matter Capacity 300 Sight Range 16 Robot Scan Range 20 Terrain Scan Density 10 Evasion (%) 42 Item Schematics ----------------- None Robot Schematics ------------------ None Fabricated ------------ Nothing Alien Tech Used ----------------- None Achievements -------------- Let's See Who's Tougher Challenges ------------ None Game ------ Seed ShadingGatlingRipper Manual? 0 Play Time 00:19:19 Cumulative 3.5 hours Start 2024.05.04 @ 16:44:17 End 2024.05.04 @ 17:04:01 Sessions 1 Manual Loads 0 Difficulty Rogue Special Mode None Game No. 6 Rogue 6 Adventurer 0 Explorer 0 Win Type - Total 0 Types 0/0/0/0/0/0/0/0/0 Lore% 10 Gallery% 6 Achievement% 8 Wizard Run 0 Options --------- Layout 1 ASCII 0 Keyboard 0 Movement Mouse Keybinds 0 Fullscreen 2 Font 24/Smallcaps Map View 50x35 Zoom Use 0% Tactical HUD 1 Map Filters NONE Filters NONE Steam 1 RUN: 7df603a5-66fa-4389-b9fc-45bfd4308383